[Event "CZE-ch Open 2018"]
[Site "Ostrava"]
[Date "2018.05.05"]
[Round "8"]
[White "Obsivac, Josef"]
[Black "Havelka, Ondrej"]
[Result "0-1"]
[ECO "D59"]
[WhiteElo "2330"]
[BlackElo "2041"]
[Annotator "NA"]
[PlyCount "122"]
[EventDate "2018.??.??"]
[EventCountry "CZE"]
[SourceTitle "playchess.com"]
[Source "ChessBase"]
[SourceQuality "1"]
[TimeControl "40/5400+30:900+30"]

1. d4 {[%emt 0:00:00]} d5 {[%emt 0:00:06]} 2. c4 {[%emt 0:00:03]} e6 {[%emt 0:00:05]} 3. Nc3 {[%emt 0:00:09]} Be7 {[%emt 0:00:04]} 4. Nf3 {[%emt 0:00:43]} Nf6 {[%emt 0:00:06]} 5. Bg5 {[%emt 0:00:12]} O-O {[%emt 0:00:18]} 6. e3 {[%emt 0:00:20]} h6 {[%emt 0:00:15]} 7. Bh4 {[%emt 0:00:30]} b6 {[%emt 0:00:06]} 8. cxd5 {[%emt 0:03:03]} Nxd5 {[%emt 0:00:17]} 9. Bxe7 {[%emt 0:02:56]} Qxe7 {[%emt 0:00:08]} 10. Nxd5 {[%emt 0:01:37]} exd5 {[%emt 0:00:05]} 11. Be2 {[%emt 0:00:47]} Be6 {[%emt 0:00:57]} 12. O-O {[%emt 0:02:22]} Nd7 {[%emt 0:02:25] D59: Queen's Gambit Declined: Tartakower Defence: Main line (8 cxd5 Nxd5)} 13. Bb5 {[%emt 0:20:11]} c5 {[%emt 0:11:00]} 14. Bxd7 {[%emt 0:00:20]} Qxd7 {[%emt 0:00:26]} 15. Ne5 {[%emt 0:00:17]} Qd6 {[%emt 0:01:54]} 16. Qd3 $146 {[%emt 0:05:56]} ({Predecessor:} 16. Qd2 c4 17. a3 b5 18. f4 Bf5 19. g4 Be4 {0-1 (66) Neven,K (2237)-Lee,V (2245) Edmonton 2006}) 16... Rfe8 {[%emt 0:07:05]} 17. Rac1 {[%emt 0:04:37]} c4 {[%emt 0:20:08]} 18. Qc2 {[%emt 0:04:17]} f6 {[%emt 0:00:37]} 19. Ng6 {[%emt 0:00:53]} Qd7 {[%emt 0:00:08]} 20. Nf4 {[%emt 0:01:27]} Bf5 {[%emt 0:00:13]} 21. Qd2 {[%emt 0:00:33]} g5 {[%emt 0:02:35]} 22. Ne2 {[%emt 0:13:42]} b5 {[%emt 0:09:32]} 23. Rfe1 {[%emt 0:01:19]} a5 {[%emt 0:02:40]} 24. a3 {[%emt 0:00:25]} Qd6 {[%emt 0:02:39]} 25. f3 {[%emt 0:08:19]} Bd3 {[%emt 0:01:32]} 26. Rc3 {[%emt 0:06:49]} Bg6 {[%emt 0:04:12]} 27. Rcc1 {[%emt 0:03:37]} b4 {[%emt 0:12:09]} 28. axb4 {[%emt 0:01:34]} axb4 {[%emt 0:00:03]} 29. Ra1 {[%emt 0:00:39]} Qb6 {[%emt 0:01:01]} 30. g4 {[%emt 0:01:07]} c3 {[%emt 0:04:27]} 31. bxc3 {[%emt 0:01:54]} b3 {[%emt 0:01:01]} 32. Qb2 {[%emt 0:05:09]} Rxa1 {[%emt 0:02:31]} 33. Rxa1 {[%emt 0:00:03]} Rxe3 {[%emt 0:00:08]} 34. Ra8+ {[%emt 0:01:43]} Kf7 {[%emt 0:05:16]} 35. Kf2 {[%emt 0:02:15]} Re7 {[%emt 0:00:40]} 36. Ng3 {[%emt 0:01:40]} Bc2 {[%emt 0:02:30]} 37. Nf5 {[%emt 0:04:14]} Bxf5 {[%emt 0:08:25]} 38. gxf5 {[%emt 0:00:02]} Qc7 {[%emt 0:00:20]} 39. Kg2 {[%emt 0:01:58]} Qc4 {[%emt 0:00:13]} 40. Kf2 {[%emt 0:01:01]} Qc7 {[%emt 0:15:49]} 41. Kg2 {[%emt 0:00:00]} Qc4 {[%emt 0:00:00]} 42. Kf2 {[%emt 0:00:00]} Qd3 {[%emt 0:00:00]} 43. Ra1 {[%emt 0:00:00]} Qe3+ {[%emt 0:00:00]} 44. Kg2 {[%emt 0:00:00]} Qe2+ {[%emt 0:00:00]} 45. Qxe2 {[%emt 0:00:00]} Rxe2+ {[%emt 0:00:00]} 46. Kg3 {[%emt 0:00:29]} b2 {[%emt 0:00:00]} 47. Rb1 {[%emt 0:01:10]} h5 {[%emt 0:00:00]} 48. h4 {[%emt 0:05:38]} Rc2 {[%emt 0:00:00]} 49. Kh3 {[%emt 0:01:46]} Ke7 {[%emt 0:00:00]} 50. Kg3 {[%emt 0:00:19]} gxh4+ {[%emt 0:00:00]} 51. Kxh4 {[%emt 0:00:06]} Kd7 {[%emt 0:00:00]} 52. Kxh5 {[%emt 0:01:06]} Rg2 {[%emt 0:00:00]} 53. Kh6 {[%emt 0:06:59]} Kc7 {[%emt 0:00:00]} 54. f4 {[%emt 0:01:14]} Kb7 {[%emt 0:00:00]} 55. Kh5 {[%emt 0:01:32]} Ka6 {[%emt 0:00:00]} 56. Re1 {[%emt 0:01:01]} Ka5 {[%emt 0:00:00]} 57. Re8 {[%emt 0:00:35]} Ka4 {[%emt 0:00:00]} 58. Rb8 {[%emt 0:00:28]} Ka3 {[%emt 0:00:00]} 59. Kh6 {[%emt 0:01:45]} Ka2 {[%emt 0:00:00]} 60. c4 {[%emt 0:01:18]} dxc4 {[%emt 0:00:00]} 61. d5 {[%emt 0:00:03]} b1=Q {[%emt 0:00:00]} 0-1

[Event "CZE-ch Open 2018"]
[Site "Ostrava"]
[Date "2018.05.05"]
[Round "8"]
[White "Mrazek, Lumir"]
[Black "Mladek, Richard"]
[Result "0-1"]
[ECO "A03"]
[WhiteElo "2327"]
[BlackElo "2136"]
[Annotator "NA"]
[PlyCount "60"]
[EventDate "2018.??.??"]
[EventCountry "CZE"]
[SourceTitle "playchess.com"]
[Source "ChessBase"]
[SourceQuality "1"]
[TimeControl "40/5400+30:900+30"]

1. f4 {[%emt 0:00:00]} d5 {[%emt 0:02:09]} 2. Nf3 {[%emt 0:00:05]} g6 {[%emt 0:01:52]} 3. e3 {[%emt 0:05:17]} Bg7 {[%emt 0:00:07]} 4. c4 {[%emt 0:01:49]} Nf6 {[%emt 0:06:27]} 5. Nc3 {[%emt 0:01:01]} O-O {[%emt 0:01:15]} 6. Be2 {[%emt 0:02:58]} c5 {[%emt 0:04:05]} 7. cxd5 {[%emt 0:01:27]} Nxd5 {[%emt 0:00:16]} 8. O-O {[%emt 0:00:33]} Nxc3 {[%emt 0:02:56]} 9. bxc3 {[%emt 0:01:06]} Nc6 {[%emt 0:01:52]} 10. Rb1 {[%emt 0:07:13]} b6 {[%emt 0:04:17]} 11. Qa4 {[%emt 0:06:29]} Bd7 {[%emt 0:02:34]} 12. Qc2 {[%emt 0:07:20]} e5 {[%emt 0:03:01]} 13. Nxe5 {[%emt 0:03:10]} Nxe5 {[%emt 0:01:14]} 14. fxe5 {[%emt 0:00:06]} Bxe5 {[%emt 0:02:51]} 15. d4 {[%emt 0:04:24]} Bg7 {[%emt 0:01:16]} 16. dxc5 {[%emt 0:06:40]} bxc5 {[%emt 0:01:32]} 17. Bc4 {[%emt 0:03:48]} Qh4 {[%emt 0:04:36]} 18. Bd5 {[%emt 0:03:37]} Rad8 {[%emt 0:07:26]} 19. Ba3 {[%emt 0:15:44]} Ba4 {[%emt 0:11:16]} 20. Qd2 {[%emt 0:09:20]} Qg5 {[%emt 0:19:24]} 21. c4 {[%emt 0:00:40]} Bd4 {[%emt 0:01:59]} 22. Rf4 {[%emt 0:03:22]} Qxf4 {[%emt 0:05:03]} 23. Qxd4 {[%emt 0:00:44]} cxd4 {[%emt 0:00:41]} 24. exf4 {[%emt 0:00:02]} Rfe8 {[%emt 0:02:09]} 25. Rb7 {[%emt 0:02:22]} Rd7 {[%emt 0:02:05]} 26. Rb4 {[%emt 0:03:35]} d3 {[%emt 0:01:08]} 27. Rxa4 {[%emt 0:00:45]} d2 {[%emt 0:01:37]} 28. Bf3 {[%emt 0:00:02]} Rd3 {[%emt 0:02:12]} 29. Bb4 {[%emt 0:01:17]} Re1+ {[%emt 0:00:19]} 30. Kf2 {[%emt 0:00:01]} Rxf3+ {[%emt 0:00:11]} 0-1

[Event "CZE-ch Open 2018"]
[Site "Ostrava"]
[Date "2018.05.05"]
[Round "8"]
[White "Cerveny, Petr"]
[Black "Stepan, Patrik"]
[Result "1-0"]
[ECO "B51"]
[WhiteElo "2315"]
[BlackElo "2207"]
[Annotator "NA"]
[PlyCount "83"]
[EventDate "2018.??.??"]
[EventCountry "CZE"]
[SourceTitle "playchess.com"]
[Source "ChessBase"]
[SourceQuality "1"]
[TimeControl "40/5400+30:900+30"]

1. e4 {[%emt 0:00:00]} c5 {[%emt 0:00:13]} 2. Nf3 {[%emt 0:00:00]} d6 {[%emt 0:00:04]} 3. Bb5+ {[%emt 0:00:00]} Nd7 {[%emt 0:00:28]} 4. O-O {[%emt 0:00:00]} a6 {[%emt 0:00:04]} 5. Bd3 {[%emt 0:00:07]} Ngf6 {[%emt 0:00:14]} 6. Re1 {[%emt 0:00:08]} e6 {[%emt 0:00:22]} 7. c3 {[%emt 0:01:07]} b5 {[%emt 0:00:04]} 8. Bc2 {[%emt 0:00:07]} Bb7 {[%emt 0:00:04]} 9. d4 {[%emt 0:00:12]} Be7 {[%emt 0:00:21]} 10. Nbd2 {[%emt 0:00:16]} O-O {[%emt 0:00:07]} 11. Nf1 {[%emt 0:00:20]} Qc7 {[%emt 0:00:27]} 12. Ng3 {[%emt 0:00:33]} cxd4 {[%emt 0:00:53]} 13. cxd4 {[%emt 0:00:39]} Rac8 {[%emt 0:00:09]} 14. Bd3 {[%emt 0:00:17]} Rfe8 {[%emt 0:00:52]} 15. Bd2 {[%emt 0:00:27]} e5 {[%emt 0:06:29]} 16. d5 {[%emt 0:05:51]} Nc5 {[%emt 0:07:48]} 17. Bc2 {[%emt 0:03:00]} g6 {[%emt 0:11:46]} 18. Rc1 {[%emt 0:02:24]} Bf8 {[%emt 0:02:49]} 19. h3 {[%emt 0:07:25]} Bg7 {[%emt 0:02:31]} 20. Nh2 {[%emt 0:01:16]} h5 {[%emt 0:12:02]} 21. Qf3 {[%emt 0:11:36]} a5 {[%emt 0:11:13]} 22. Nhf1 {[%emt 0:10:15]} Nfd7 {[%emt 0:12:21]} 23. Nxh5 {[%emt 0:08:03]} gxh5 {[%emt 0:01:11]} 24. Ng3 {[%emt 0:05:59]} Nf8 {[%emt 0:06:54]} 25. Nf5 {[%emt 0:07:59]} Ng6 {[%emt 0:04:15]} 26. Qxh5 {[%emt 0:01:49]} Nd7 {[%emt 0:01:15]} 27. Bd3 {[%emt 0:11:14]} Qb6 {[%emt 0:01:06]} 28. Qe2 {[%emt 0:04:39]} Rxc1 {[%emt 0:02:37]} 29. Rxc1 {[%emt 0:01:13]} Rc8 {[%emt 0:00:33]} 30. Bxb5 {[%emt 0:00:27]} Rxc1+ {[%emt 0:00:41]} 31. Bxc1 {[%emt 0:00:03]} Nc5 {[%emt 0:00:32]} 32. Be3 {[%emt 0:01:55]} Bc8 {[%emt 0:00:15]} 33. a4 {[%emt 0:05:38]} Qc7 {[%emt 0:05:08]} 34. Qg4 {[%emt 0:03:06]} Kf8 {[%emt 0:03:56]} 35. h4 {[%emt 0:00:52]} Bxf5 {[%emt 0:00:41]} 36. exf5 {[%emt 0:00:51]} Nf4 {[%emt 0:00:00]} 37. h5 {[%emt 0:03:19]} Bf6 {[%emt 0:04:30]} 38. h6 {[%emt 0:01:28]} Qd8 {[%emt 0:03:40]} 39. h7 {[%emt 0:01:12]} Ke7 {[%emt 0:00:36]} 40. Qg8 {[%emt 0:01:38]} Ne4 {[%emt 0:15:35]} 41. g3 {[%emt 0:00:00]} Nxd5 {[%emt 0:00:00]} 42. Bc4 1-0

[Event "CZE-ch Open 2018"]
[Site "Ostrava"]
[Date "2018.05.05"]
[Round "8"]
[White "Malik, Jan"]
[Black "Konopka, Michal"]
[Result "1/2-1/2"]
[ECO "C42"]
[WhiteElo "2284"]
[BlackElo "2373"]
[Annotator "NA"]
[PlyCount "29"]
[EventDate "2018.??.??"]
[EventCountry "CZE"]
[SourceTitle "playchess.com"]
[Source "ChessBase"]
[SourceQuality "1"]
[TimeControl "40/5400+30:900+30"]

1. e4 {[%emt 0:00:00]} e5 {[%emt 0:00:50]} 2. Nf3 {[%emt 0:00:00]} Nf6 {[%emt 0:00:05]} 3. Nxe5 {[%emt 0:00:00]} d6 {[%emt 0:03:24]} 4. Nf3 {[%emt 0:00:04]} Nxe4 {[%emt 0:00:06]} 5. d3 {[%emt 0:01:53]} Nf6 {[%emt 0:00:24]} 6. d4 {[%emt 0:00:06]} Be7 {[%emt 0:01:18]} 7. Bd3 {[%emt 0:00:39]} O-O {[%emt 0:00:20]} 8. h3 {[%emt 0:01:09]} c5 {[%emt 0:02:40]} 9. O-O {[%emt 0:02:29]} Nc6 {[%emt 0:07:15]} 10. c3 {[%emt 0:03:21]} Re8 {[%emt 0:05:40]} 11. Re1 {[%emt 0:00:34]} Bd7 {[%emt 0:05:15]} 12. Nbd2 {[%emt 0:04:16]} cxd4 {[%emt 0:19:37]} 13. Nxd4 {[%emt 0:02:21]} Nxd4 {[%emt 0:03:34]} 14. cxd4 {[%emt 0:00:06]} Bf8 {[%emt 0:10:02]} 15. Ne4 {[%emt 0:07:23]} 1/2-1/2

[Event "CZE-ch Open 2018"]
[Site "Ostrava"]
[Date "2018.05.05"]
[Round "8"]
[White "Miesbauer, Jan"]
[Black "Lechtynsky, Jiri"]
[Result "1/2-1/2"]
[ECO "A50"]
[WhiteElo "2261"]
[BlackElo "2349"]
[Annotator "NA"]
[PlyCount "50"]
[EventDate "2018.??.??"]
[EventCountry "CZE"]
[SourceTitle "playchess.com"]
[Source "ChessBase"]
[SourceQuality "1"]
[TimeControl "40/5400+30:900+30"]

1. d4 {[%emt 0:00:00]} Nf6 {[%emt 0:00:27]} 2. c4 {[%emt 0:00:00]} c6 {[%emt 0:00:45]} 3. Nf3 {[%emt 0:00:10]} d5 {[%emt 0:00:06]} 4. Qc2 {[%emt 0:00:48]} g6 {[%emt 0:06:28]} 5. Bf4 {[%emt 0:00:40]} Bf5 {[%emt 0:11:31]} 6. Qb3 {[%emt 0:00:38]} Qb6 {[%emt 0:00:05]} 7. e3 {[%emt 0:01:24]} Nbd7 {[%emt 0:04:24]} 8. Nc3 {[%emt 0:01:29]} Bg7 {[%emt 0:00:47]} 9. Qxb6 {[%emt 0:08:48]} Nxb6 {[%emt 0:04:44]} 10. cxd5 {[%emt 0:00:22]} Nbxd5 {[%emt 0:02:17]} 11. Nxd5 {[%emt 0:04:23]} Nxd5 {[%emt 0:00:51]} 12. Be5 {[%emt 0:00:10]} Bxe5 {[%emt 0:06:00]} 13. Nxe5 {[%emt 0:00:09]} Nb4 {[%emt 0:01:23]} 14. Kd2 {[%emt 0:02:05]} f6 {[%emt 0:00:04]} 15. Nc4 {[%emt 0:06:17]} O-O-O {[%emt 0:00:53]} 16. a3 {[%emt 0:03:11]} Na6 {[%emt 0:01:15]} 17. Kc3 {[%emt 0:18:41]} c5 {[%emt 0:01:06]} 18. dxc5 {[%emt 0:05:32]} Nxc5 {[%emt 0:04:15]} 19. f3 {[%emt 0:00:07]} Kb8 {[%emt 0:08:40]} 20. e4 {[%emt 0:08:44]} Be6 {[%emt 0:02:12]} 21. Be2 {[%emt 0:04:19]} Rc8 {[%emt 0:00:19]} 22. a4 {[%emt 0:06:14]} Rhd8 {[%emt 0:02:07]} 23. Rhc1 {[%emt 0:03:07]} b6 {[%emt 0:01:26]} 24. b3 {[%emt 0:01:14]} Kb7 {[%emt 0:03:59]} 25. Rd1 {[%emt 0:01:07]} a5 {Kd4} 1/2-1/2

[Event "CZE-ch Open 2018"]
[Site "Ostrava"]
[Date "2018.05.05"]
[Round "8"]
[White "Vybiral, Zdenek"]
[Black "Hausner, Ivan"]
[Result "1/2-1/2"]
[ECO "B06"]
[WhiteElo "2261"]
[BlackElo "2334"]
[Annotator "NA"]
[PlyCount "83"]
[EventDate "2018.??.??"]
[EventCountry "CZE"]
[SourceTitle "playchess.com"]
[Source "ChessBase"]
[SourceQuality "1"]
[TimeControl "40/5400+30:900+30"]

1. d4 {[%emt 0:00:00]} g6 {[%emt 0:00:11]} 2. e4 {[%emt 0:00:00]} Bg7 {[%emt 0:00:06]} 3. c4 {[%emt 0:00:00]} d6 {[%emt 0:00:38]} 4. Ne2 {[%emt 0:00:35]} e5 {[%emt 0:00:58]} 5. Be3 {[%emt 0:02:17]} Nf6 {[%emt 0:03:52]} 6. f3 {[%emt 0:00:24]} O-O {[%emt 0:00:54]} 7. Nbc3 {[%emt 0:00:58]} exd4 {[%emt 0:00:50]} 8. Nxd4 {[%emt 0:00:07]} c6 {[%emt 0:01:28]} 9. Be2 {[%emt 0:01:15]} Re8 {[%emt 0:00:07]} 10. Bf2 {[%emt 0:00:04]} d5 {[%emt 0:00:39]} 11. exd5 {[%emt 0:00:23]} cxd5 {[%emt 0:00:06]} 12. c5 {[%emt 0:00:17]} Nc6 {[%emt 0:02:18]} 13. O-O {[%emt 0:00:12]} Nxd4 {[%emt 0:01:15]} 14. Bxd4 {[%emt 0:00:38]} Be6 {[%emt 0:00:05]} 15. Qd2 {[%emt 0:02:33]} Nh5 {[%emt 0:01:15]} 16. Rad1 {[%emt 0:10:45]} Qh4 {[%emt 0:02:23]} 17. Rfe1 {[%emt 0:07:42]} Bxd4+ {[%emt 0:02:57]} 18. Qxd4 {[%emt 0:00:08]} Qxd4+ {[%emt 0:00:05]} 19. Rxd4 {[%emt 0:00:08]} Rac8 {[%emt 0:00:06]} 20. Bb5 {[%emt 0:19:05]} Red8 {[%emt 0:00:07]} 21. b4 {[%emt 0:00:22]} b6 {[%emt 0:00:19]} 22. Na4 {[%emt 0:03:47]} Ng7 {[%emt 0:02:35]} 23. g4 {[%emt 0:00:23]} bxc5 {[%emt 0:01:16]} 24. Nxc5 {[%emt 0:02:28]} Rd6 {[%emt 0:00:07]} 25. Ba4 {[%emt 0:18:53]} h5 {[%emt 0:00:44]} 26. h3 {[%emt 0:00:08]} hxg4 {[%emt 0:00:44]} 27. hxg4 {[%emt 0:00:16]} Rc7 {[%emt 0:01:53]} 28. Kf2 {[%emt 0:06:56]} Bc8 {[%emt 0:03:10]} 29. Bb3 {[%emt 0:00:48]} Ne6 {[%emt 0:00:06]} 30. Nxe6 {[%emt 0:03:31]} Bxe6 {[%emt 0:01:23]} 31. Kg3 {[%emt 0:02:44]} Rb6 {[%emt 0:00:46]} 32. Red1 {[%emt 0:16:25]} Rcb7 {[%emt 0:00:58]} 33. Bxd5 {[%emt 0:00:14]} Bxd5 {[%emt 0:00:09]} 34. Rxd5 {[%emt 0:00:01]} Rxb4 {[%emt 0:00:07]} 35. R1d2 {[%emt 0:02:02]} Ra4 {[%emt 0:00:15]} 36. g5 {[%emt 0:00:21]} Kg7 {[%emt 0:00:24]} 37. Rd6 {[%emt 0:00:39]} Rb5 {[%emt 0:00:21]} 38. f4 {[%emt 0:00:19]} Rf5 {[%emt 0:01:44]} 39. Rf2 {[%emt 0:00:52]} Ra3+ {[%emt 0:00:23]} 40. Kg4 {[%emt 0:00:16]} Rfa5 {[%emt 0:15:07]} 41. Rdd2 {[%emt 0:15:45]} R5a4 {[%emt 0:01:00]} 42. Rc2 {[%emt 0:00:00]} 1/2-1/2

[Event "CZE-ch Open 2018"]
[Site "Ostrava"]
[Date "2018.05.05"]
[Round "8"]
[White "Jedlicka, Ales"]
[Black "Sramek, Vojtech"]
[Result "1-0"]
[ECO "D47"]
[WhiteElo "2238"]
[BlackElo "2145"]
[Annotator "NA"]
[PlyCount "43"]
[EventDate "2018.??.??"]
[EventCountry "CZE"]
[SourceTitle "playchess.com"]
[Source "ChessBase"]
[SourceQuality "1"]
[TimeControl "40/5400+30:900+30"]

1. d4 {[%emt 0:00:00]} d5 {[%emt 0:00:05]} 2. c4 {[%emt 0:00:00]} c6 {[%emt 0:00:06]} 3. Nf3 {[%emt 0:00:09]} Nf6 {[%emt 0:00:07]} 4. Nc3 {[%emt 0:00:15]} e6 {[%emt 0:00:10]} 5. e3 {[%emt 0:00:10]} Nbd7 {[%emt 0:00:04]} 6. Bd3 {[%emt 0:00:14]} dxc4 {[%emt 0:00:07]} 7. Bxc4 {[%emt 0:00:10]} b5 {[%emt 0:00:04]} 8. Bd3 {[%emt 0:00:21]} Bb7 {[%emt 0:00:05]} 9. e4 {[%emt 0:00:36]} b4 {[%emt 0:00:31]} 10. Na4 {[%emt 0:00:15]} c5 {[%emt 0:00:45]} 11. e5 {[%emt 0:00:21]} Nd5 {[%emt 0:00:22]} 12. O-O {[%emt 0:00:16]} cxd4 {[%emt 0:01:36]} 13. Nxd4 {[%emt 0:00:18]} Nxe5 {[%emt 0:02:40]} 14. Bb5+ {[%emt 0:00:14]} Nd7 {[%emt 0:03:34]} 15. Re1 {[%emt 0:00:30]} g6 {[%emt 0:26:00]} 16. Nc6 {[%emt 0:02:20]} Qc7 {[%emt 0:04:07]} 17. Qxd5 {[%emt 0:01:09]} Be7 {[%emt 0:07:26]} 18. Qd4 {[%emt 0:04:41]} Bf6 {[%emt 0:11:07]} 19. Ne5 {[%emt 0:01:39]} O-O-O {[%emt 0:10:25]} 20. Bxd7+ {[%emt 0:01:09]} Rxd7 {[%emt 0:00:05]} 21. Qxd7+ {[%emt 0:00:22]} Qxd7 {[%emt 0:00:03]} 22. Nxd7 {[%emt 0:00:12]} 1-0

[Event "CZE-ch Open 2018"]
[Site "Ostrava"]
[Date "2018.05.05"]
[Round "8"]
[White "Belunek, Vladimir"]
[Black "Tuma, Jiri"]
[Result "0-1"]
[ECO "A61"]
[WhiteElo "2216"]
[BlackElo "2296"]
[Annotator "NA"]
[PlyCount "80"]
[EventDate "2018.??.??"]
[EventCountry "CZE"]
[SourceTitle "playchess.com"]
[Source "ChessBase"]
[SourceQuality "1"]
[TimeControl "40/5400+30:900+30"]

1. d4 {[%emt 0:00:00]} Nf6 {[%emt 0:06:59]} 2. c4 {[%emt 0:00:24]} c5 {[%emt 0:00:36]} 3. d5 {[%emt 0:00:05]} e6 {[%emt 0:00:24]} 4. Nc3 {[%emt 0:00:10]} exd5 {[%emt 0:00:21]} 5. cxd5 {[%emt 0:00:07]} d6 {[%emt 0:01:08]} 6. Nf3 {[%emt 0:00:57]} g6 {[%emt 0:00:36]} 7. Bf4 {[%emt 0:00:46]} Bg7 {[%emt 0:01:48]} 8. Qa4+ {[%emt 0:02:55]} Bd7 {[%emt 0:02:44]} 9. Qb3 {[%emt 0:01:59]} b5 {[%emt 0:01:00]} 10. Bxd6 {[%emt 0:03:59]} Qb6 {[%emt 0:01:20]} 11. Bg3 {[%emt 0:02:12]} O-O {[%emt 0:01:52]} 12. e3 {[%emt 0:07:20]} c4 {[%emt 0:04:03]} 13. Qb4 {[%emt 0:08:01]} Na6 {[%emt 0:12:59]} 14. Qd6 {[%emt 0:00:08]} Qa5 {[%emt 0:00:25]} 15. Nd2 {[%emt 0:03:03]} Rad8 {[%emt 0:13:40]} 16. Bxc4 {[%emt 0:06:24]} Ne8 {[%emt 0:26:01]} 17. Qf4 {[%emt 0:05:55]} bxc4 {[%emt 0:01:16]} 18. O-O {[%emt 0:00:36]} Bxc3 {[%emt 0:02:14]} 19. bxc3 {[%emt 0:00:03]} Qxd5 {[%emt 0:00:44]} 20. Ne4 {[%emt 0:01:07]} Bf5 {[%emt 0:10:41]} 21. Ng5 {[%emt 0:02:12]} Bd3 {[%emt 0:00:44]} 22. e4 {[%emt 0:01:12]} Qd7 {[%emt 0:02:57]} 23. Qh4 {[%emt 0:02:09]} h5 {[%emt 0:00:36]} 24. Rfe1 {[%emt 0:00:20]} Ng7 {[%emt 0:03:07]} 25. e5 {[%emt 0:02:04]} Nc5 {[%emt 0:02:27]} 26. e6 {[%emt 0:01:53]} Ncxe6 {[%emt 0:00:51]} 27. Nxe6 {[%emt 0:00:08]} fxe6 {[%emt 0:00:49]} 28. Be5 {[%emt 0:00:21]} Qf7 {[%emt 0:00:49]} 29. f4 {[%emt 0:00:35]} Rd7 {[%emt 0:00:58]} 30. h3 {[%emt 0:00:21]} Nf5 {[%emt 0:00:46]} 31. Qg5 {[%emt 0:00:19]} h4 {[%emt 0:00:21]} 32. Kh2 {[%emt 0:02:17]} Kh7 {[%emt 0:00:14]} 33. Rg1 {[%emt 0:01:09]} Qe7 {[%emt 0:00:10]} 34. Qg4 {[%emt 0:00:16]} Ng3 {[%emt 0:00:27]} 35. Rae1 {[%emt 0:00:26]} Bf5 {[%emt 0:00:29]} 36. Qf3 {[%emt 0:00:18]} Rc8 {[%emt 0:00:57]} 37. Rd1 {[%emt 0:01:22]} Rxd1 {[%emt 0:00:54]} 38. Rxd1 {[%emt 0:00:06]} Bd3 {[%emt 0:00:00]} 39. Qf2 {[%emt 0:00:41]} Nf5 {[%emt 0:00:16]} 40. Qf3 {[%emt 0:01:05]} Ng3 {[%emt 0:15:37]} 0-1

[Event "CZE-ch Open 2018"]
[Site "Ostrava"]
[Date "2018.05.05"]
[Round "8"]
[White "Bartos, Jan"]
[Black "Bures, Martin"]
[Result "1/2-1/2"]
[ECO "D37"]
[WhiteElo "2198"]
[BlackElo "2100"]
[Annotator "NA"]
[PlyCount "47"]
[EventDate "2018.??.??"]
[EventCountry "CZE"]
[SourceTitle "playchess.com"]
[Source "ChessBase"]
[SourceQuality "1"]
[TimeControl "40/5400+30:900+30"]

1. d4 {[%emt 0:00:00]} Nf6 {[%emt 0:00:02]} 2. c4 {[%emt 0:00:00]} e6 {[%emt 0:00:01]} 3. Nf3 {[%emt 0:00:00]} d5 {[%emt 0:00:02]} 4. Nc3 {[%emt 0:00:00]} a6 {[%emt 0:00:01]} 5. cxd5 {[%emt 0:00:20]} exd5 {[%emt 0:00:41]} 6. Bg5 {[%emt 0:00:11]} Be6 {[%emt 0:05:13]} 7. e3 {[%emt 0:01:46]} Nbd7 {[%emt 0:09:47]} 8. Be2 {[%emt 0:01:32]} h6 {[%emt 0:09:23]} 9. Bh4 {[%emt 0:00:44]} Bd6 {[%emt 0:00:19]} 10. O-O {[%emt 0:00:46]} Qe7 {[%emt 0:05:40]} 11. Qc2 {[%emt 0:02:01]} g5 {[%emt 0:04:41]} 12. Bg3 {[%emt 0:01:21]} Bxg3 {[%emt 0:00:05]} 13. hxg3 {[%emt 0:00:41]} Qd6 {[%emt 0:00:15]} 14. Rfc1 {[%emt 0:10:38]} c6 {[%emt 0:08:06]} 15. a4 {[%emt 0:06:41]} a5 {[%emt 0:01:36]} 16. Rab1 {[%emt 0:02:00]} O-O {[%emt 0:03:41]} 17. b3 {[%emt 0:12:16]} Rfe8 {[%emt 0:02:35]} 18. Rb2 {[%emt 0:02:45]} Bg4 {[%emt 0:07:50]} 19. Bd3 {[%emt 0:08:56]} Re7 {[%emt 0:03:08]} 20. Nh2 {[%emt 0:02:46]} Bh5 {[%emt 0:02:34]} 21. Bf5 {[%emt 0:03:42]} Kg7 {[%emt 0:01:03]} 22. Rcb1 {[%emt 0:00:27]} Bg6 {[%emt 0:03:44]} 23. Bxg6 {[%emt 0:00:41]} fxg6 {[%emt 0:00:01]} 24. Nf3 {[%emt 0:00:24]} 1/2-1/2

[Event "CZE-ch Open 2018"]
[Site "Ostrava"]
[Date "2018.05.05"]
[Round "8"]
[White "Gnida, Patrik"]
[Black "Jelinek, Michal"]
[Result "0-1"]
[ECO "D43"]
[WhiteElo "2165"]
[BlackElo "2134"]
[Annotator "NA"]
[PlyCount "72"]
[EventDate "2018.??.??"]
[EventCountry "CZE"]
[SourceTitle "playchess.com"]
[Source "ChessBase"]
[SourceQuality "1"]
[TimeControl "40/5400+30:900+30"]

1. c4 Nf6 {[%emt 0:00:32]} 2. Nc3 {[%emt 0:00:00]} e6 {[%emt 0:00:20]} 3. Nf3 {[%emt 0:00:05]} d5 {[%emt 0:03:18]} 4. d4 {[%emt 0:00:04]} c6 {[%emt 0:00:33]} 5. Bf4 {[%emt 0:00:36]} Nbd7 {[%emt 0:03:23]} 6. e3 {[%emt 0:01:02]} Be7 {[%emt 0:04:57]} 7. c5 {[%emt 0:01:06]} O-O {[%emt 0:06:59]} 8. Bd3 {[%emt 0:00:26]} Re8 {[%emt 0:01:10]} 9. O-O {[%emt 0:00:08]} Nf8 {[%emt 0:02:17]} 10. h3 {[%emt 0:02:46]} Ng6 {[%emt 0:01:39]} 11. Bh2 {[%emt 0:00:02]} Nd7 {[%emt 0:07:52]} 12. b4 {[%emt 0:00:17]} Bf6 {[%emt 0:02:17]} 13. Qc2 {[%emt 0:00:14]} e5 {[%emt 0:01:30]} 14. dxe5 {[%emt 0:03:47]} Ndxe5 {[%emt 0:01:22]} 15. Nxe5 {[%emt 0:00:23]} Bxe5 {[%emt 0:00:59]} 16. Bxe5 {[%emt 0:01:59]} Rxe5 {[%emt 0:00:13]} 17. Rae1 {[%emt 0:00:02]} Qe7 {[%emt 0:04:06]} 18. Ne2 {[%emt 0:03:27]} Bd7 {[%emt 0:01:29]} 19. Nd4 {[%emt 0:05:28]} Nh4 {[%emt 0:10:58]} 20. Qe2 {[%emt 0:03:31]} Rg5 {[%emt 0:13:46]} 21. g4 {[%emt 0:01:11]} f5 {[%emt 0:07:33]} 22. f4 {[%emt 0:00:59]} Rg6 {[%emt 0:00:08]} 23. Kh1 {[%emt 0:00:29]} Rf8 {[%emt 0:02:39]} 24. Rg1 {[%emt 0:02:48]} fxg4 {[%emt 0:14:24]} 25. Bxg6 {[%emt 0:00:48]} hxg6 {[%emt 0:00:15]} 26. hxg4 {[%emt 0:02:24]} Qe4+ {[%emt 0:00:04]} 27. Kh2 {[%emt 0:00:56]} g5 {[%emt 0:00:31]} 28. f5 {[%emt 0:03:55]} Rf6 {[%emt 0:00:15]} 29. Rg3 {[%emt 0:02:15]} Rh6 {[%emt 0:02:33]} 30. Rh3 {[%emt 0:01:33]} g6 {[%emt 0:00:18]} 31. Qf2 {[%emt 0:01:36]} gxf5 {[%emt 0:04:02]} 32. Rf1 {[%emt 0:01:18]} f4 {[%emt 0:03:11]} 33. exf4 {[%emt 0:00:02]} Bxg4 {[%emt 0:00:21]} 34. fxg5 {[%emt 0:00:54]} Nf3+ {[%emt 0:00:31]} 35. Qxf3 {[%emt 0:01:22]} Rxh3+ {[%emt 0:00:10]} 36. Qxh3 {[%emt 0:00:06]} Bxh3 {[%emt 0:00:04]} 0-1